fUSD/lending_fUSD_20240720
["ID","MTS","AMOUNT","RATE_DAILY","PERIOD"]
[332698546,1721454650729,-500.0,0.00032876,14]
[332698547,1721454650740,-749.26,0.00032876,14]
[332698548,1721454650750,-501.96107144,0.00032876,14]
[332698549,1721454650760,-500.0,0.00032876,14]
[332698550,1721454650770,-674.35,0.00032876,14]
[332698551,1721454650780,-500.0,0.00032876,14]
[332698552,1721454650790,-831.76,0.00032876,14]
[332698553,1721454650800,-749.98,0.00032876,14]
[332698554,1721454650810,-500.0,0.00032876,14]
[332698555,1721454650819,-500.0,0.00032876,14]
[332698556,1721454650830,-500.0,0.00032876,14]
[332698557,1721454650839,-500.0,0.00032876,14]
[332698558,1721454650848,-1280.8,0.00032876,14]
[332698559,1721454650859,-500.0,0.00032876,14]
[332698560,1721454650868,-501.46299802,0.00032876,14]
[332698561,1721454650878,-1086.68,0.00032876,14]
[332698562,1721454650887,-1680.75,0.00032876,14]
[332698563,1721454650896,-500.0,0.00032876,14]
[332698564,1721454650906,-500.2779212,0.00032876,14]
[332698565,1721454650916,-500.0,0.00032876,14]
[332698566,1721454650926,-500.0,0.00032876,14]
[332698567,1721454650935,-500.0,0.00032876,14]
[332698568,1721454650945,-500.0,0.00032876,14]
[332698569,1721454650956,-500.0,0.00032876,14]
[332698570,1721454650966,-500.0,0.00032876,14]
[332698571,1721454650975,-500.0,0.00032876,14]
[332698572,1721454650985,-500.74947693,0.00032876,14]
[332698573,1721454650994,-500.0,0.00032876,14]
[332698574,1721454651004,-500.0,0.00032876,14]
[332698575,1721454651013,-500.0,0.00032876,14]
[332698576,1721454651023,-990.69,0.00032876,14]
[332698577,1721454651032,-773.69,0.00032876,14]
[332698578,1721454651042,-500.42205808,0.00032876,14]
[332698579,1721454651053,-500.0,0.00032876,14]
[332698580,1721454651063,-500.0,0.00032876,14]
[332698581,1721454651072,-598.66,0.00032876,14]
[332698582,1721454651082,-500.0,0.00032876,14]
[332698583,1721454651093,-625.76,0.00032876,14]
[332698584,1721454651103,-500.0,0.00032876,14]
[332698585,1721454651114,-316.44447022,0.00032876,14]
[332698586,1721454651124,-185.37784601,0.00032876,14]
[332698587,1721454651134,-964.11,0.00032876,14]
[332698588,1721454651143,-500.89107976,0.00032876,14]
[332698589,1721454651153,-500.0,0.00032876,14]
[332698590,1721454651162,-500.0,0.00032876,14]
[332698591,1721454651172,-503.15917996,0.00032876,14]
[332698592,1721454651182,-798.13,0.00032876,14]
[332698593,1721454651192,-185.45058303,0.00032876,14]
[332698594,1721454651202,-500.0,0.00032876,14]
[332698595,1721454651212,-500.0,0.00032876,14]
[332698596,1721454651223,-679.12,0.00032876,14]
[332698597,1721454651232,-500.0,0.00032876,14]
[332698598,1721454651242,-500.0,0.00032876,14]
[332698599,1721454651252,-500.0,0.00032876,14]
[332698600,1721454651262,-500.0,0.00032876,14]
[332698601,1721454651271,-1219.46,0.00032876,14]
[332698602,1721454651281,-500.87501904,0.00032876,14]
[332698603,1721454651291,-500.0,0.00032876,14]
[332698604,1721454651300,-500.0,0.00032876,14]
[332698605,1721454651315,-500.0,0.00032876,14]
[332698606,1721454651324,-500.0,0.00032876,14]
[332698607,1721454651335,-500.0,0.00032876,14]
[332698608,1721454651345,-968.81,0.00032876,14]
[332698609,1721454651354,-500.0,0.00032876,14]
[332698610,1721454651364,-500.0,0.00032876,14]
[332698611,1721454651374,-1098.81,0.00032876,14]
[332698612,1721454651383,-503.95924295,0.00032876,14]
[332698613,1721454651393,-1573.39,0.00032876,14]
[332698614,1721454651406,-500.0,0.00032876,14]
[332698615,1721454651416,-736.88,0.00032876,14]
[332698616,1721454651425,-503.73,0.00032876,14]
[332698617,1721454651435,-500.0,0.00032876,14]
[332698618,1721454651445,-500.0,0.00032876,14]
[332698619,1721454651454,-625.9,0.00032876,14]
[332698620,1721454651464,-500.0,0.00032876,14]
[332698621,1721454651473,-500.0,0.00032876,14]
[332698622,1721454651483,-955.41,0.00032876,14]
[332698623,1721454651493,-998.25,0.00032876,14]
[332698624,1721454651502,-504.90013099,0.00032876,14]
[332698625,1721454651513,-500.0,0.00032876,14]
[332698626,1721454651523,-557.41,0.00032876,14]
[332698627,1721454651533,-630.52,0.00032876,14]
[332698628,1721454651543,-500.0,0.00032876,14]
[332698629,1721454651554,-500.0,0.00032876,14]
[332698630,1721454651565,-500.0,0.00032876,14]
[332698631,1721454651574,-1514.94,0.00032876,14]
[332698632,1721454651585,-500.0,0.00032876,14]
[332698633,1721454651594,-765.78,0.00032876,14]
[332698634,1721454651604,-500.0,0.00032876,14]
[332698635,1721454651615,-500.0,0.00032876,14]
[332698636,1721454651625,-500.67349689,0.00032876,14]
[332698637,1721454651635,-1959.07,0.00032876,14]
[332698638,1721454651645,-893.73,0.00032876,14]
[332698639,1721454651656,-500.0,0.00032876,14]
[332698640,1721454651666,-1268.47,0.00032876,14]
[332698641,1721454651677,-731.02,0.00032876,14]
[332698643,1721454651687,-500.0,0.00032876,14]
[332698644,1721454651698,-628.62,0.00032876,14]
[332698645,1721454651708,-503.92648707,0.00032876,14]
[332698646,1721454651720,-707.75,0.00032876,14]
[332698647,1721454651730,-500.0,0.00032876,14]
[332698648,1721454651741,-1899.18,0.00032876,14]
[332698649,1721454651752,-500.0,0.00032876,14]
[332698650,1721454651762,-500.32387954,0.00032876,14]
[332698651,1721454651772,-604.66338937,0.00032876,2]
[332698652,1721454651782,-749.43,0.00032876,14]
[332698653,1721454651791,-500.0,0.00032876,14]
[332698654,1721454651801,-500.0,0.00032876,14]
[332698655,1721454651811,-500.0,0.00032876,14]
[332698656,1721454651820,-1268.18,0.00032876,14]
[332698657,1721454651831,-500.0,0.00032876,14]
[332698658,1721454651841,-500.0,0.00032876,14]
[332698659,1721454651852,-500.0,0.00032876,14]
[332698660,1721454651863,-500.94586559,0.00032876,14]
[332698661,1721454651872,-500.0,0.00032876,14]
[332698662,1721454651882,-712.94,0.00032876,14]
[332698663,1721454651892,-858.57,0.00032876,14]
[332698664,1721454651902,-500.0,0.00032876,14]
[332698665,1721454651913,-500.0,0.00032876,14]
[332698666,1721454651923,-1539.07,0.00032876,14]
[332698667,1721454651933,-500.0,0.00032876,14]
[332698668,1721454651942,-792.24,0.00032876,14]
[332698669,1721454651952,-500.0,0.00032876,14]
[332698670,1721454651961,-500.0,0.00032876,14]
[332698671,1721454651971,-500.0,0.00032876,14]
[332698672,1721454651981,-500.0,0.00032876,14]
[332698673,1721454651991,-500.0,0.00032876,14]
[332698674,1721454652001,-500.0,0.00032876,14]
[332698675,1721454652011,-907.05,0.00032876,14]
[332698676,1721454652021,-500.0,0.00032876,14]
[332698677,1721454652031,-500.0,0.00032876,14]
[332698678,1721454652040,-841.04,0.00032876,14]
[332698679,1721454652050,-500.0,0.00032876,14]
[332698680,1721454652060,-217.35553332,0.00032876,14]
[332698681,1721454652070,-502.16033383,0.00032876,14]
[332698682,1721454652079,-553.8,0.00032876,14]
[332698683,1721454652090,-500.0,0.00032876,14]
[332698684,1721454652100,-500.0,0.00032876,14]
[332698685,1721454652110,-500.0,0.00032876,14]
[332698686,1721454652119,-809.53,0.00032876,14]
[332698687,1721454652129,-500.0,0.00032876,14]
[332698688,1721454652139,-500.0,0.00032876,14]
[332698689,1721454652148,-832.3,0.00032876,14]
[332698690,1721454652157,-832.3,0.00032876,14]
[332698691,1721454652167,-832.3,0.00032876,14]
[332698692,1721454652177,-500.0,0.00032876,14]
[332698693,1721454652187,-975.87,0.00032876,14]
[332698694,1721454652196,-832.3,0.00032876,14]
[332698695,1721454652206,-832.3,0.00032876,14]
[332698696,1721454652215,-637.92,0.00032876,14]
[332698697,1721454652226,-832.3,0.00032876,14]
[332698698,1721454652236,-541.21853331,0.00032876,14]
[332698699,1721454652246,-832.3,0.00032876,14]
[332698700,1721454652255,-832.3,0.00032876,14]
[332698701,1721454652265,-500.0,0.00032876,14]
[332698702,1721454652275,-832.3,0.00032876,14]
[332698703,1721454652284,-832.3,0.00032876,14]
[332698704,1721454652293,-832.3,0.00032876,14]
[332698705,1721454652303,-832.3,0.00032876,14]
[332698706,1721454652315,-832.3,0.00032876,14]
[332698707,1721454652325,-832.3,0.00032876,14]
[332698708,1721454652335,-832.3,0.00032876,14]
[332698709,1721454652344,-832.3,0.00032876,14]
[332698710,1721454652354,-500.0,0.00032876,14]
[332698711,1721454652363,-832.3,0.00032876,14]
[332698712,1721454652373,-832.3,0.00032876,14]
[332698713,1721454652384,-832.3,0.00032876,14]
[332698714,1721454652394,-832.3,0.00032876,14]
[332698715,1721454652403,-832.3,0.00032876,14]
[332698716,1721454652413,-568.56,0.00032876,14]
[332698717,1721454652423,-832.3,0.00032876,14]
[332698718,1721454652433,-832.3,0.00032876,14]
[332698719,1721454652442,-832.36110494,0.00032876,14]
[332698720,1721454652452,-500.0,0.00032876,14]
[332698721,1721454652462,-500.0,0.00032876,14]
[332698722,1721454652472,-500.0,0.00032876,14]
[332698723,1721454652482,-500.0,0.00032876,14]
[332698724,1721454652492,-500.0,0.00032876,14]
[332698725,1721454652502,-500.0,0.00032876,14]
[332698726,1721454652584,-701.51,0.00032876,14]
[332698727,1721454652594,-500.0,0.00032876,14]
[332698728,1721454652603,-616.55,0.00032876,14]
[332698729,1721454652616,-500.0,0.00032876,14]
[332698730,1721454652625,-500.0,0.00032876,14]
[332698731,1721454652635,-500.0,0.00032876,14]
[332698732,1721454652644,-553.55,0.00032876,14]
[332698733,1721454652653,-500.0,0.00032876,14]
[332698734,1721454652663,-500.0,0.00032876,14]
[332698735,1721454652673,-500.0,0.00032876,14]
[332698736,1721454652682,-500.0,0.00032876,14]
[332698737,1721454652691,-500.0,0.00032876,14]
[332698738,1721454652701,-500.0,0.00032876,14]
[332698739,1721454652710,-678.89,0.00032876,14]
[332698740,1721454652720,-500.0,0.00032876,14]
[332698741,1721454652730,-500.0,0.00032876,14]
[332698742,1721454652739,-500.0,0.00032876,14]
[332698743,1721454652749,-500.0,0.00032876,14]
[332698744,1721454652758,-519.86,0.00032876,14]
[332698745,1721454652768,-500.0,0.00032876,14]
[332698746,1721454652778,-500.0,0.00032876,14]
[332698747,1721454652788,-1304.01,0.00032876,14]
[332698748,1721454652797,-500.0,0.00032876,14]
[332698749,1721454652807,-860.37,0.00032876,14]
[332698750,1721454652817,-500.0,0.00032876,14]
[332698751,1721454652826,-502.1145193,0.00032876,14]
[332698752,1721454652837,-500.0,0.00032876,14]
[332698753,1721454652847,-373.24071667,0.00032876,14]
[332698754,1721454652856,-500.0,0.00032876,14]
[332698755,1721454652866,-344.15,0.00032876,14]
[332698756,1721454652876,-500.0,0.00032876,14]
[332698757,1721454652885,-500.0,0.00032876,14]
[332698758,1721454652895,-585.34,0.00032876,14]
[332698759,1721454652905,-500.0,0.00032876,14]
[332698760,1721454652914,-500.0,0.00032876,14]
[332698761,1721454652924,-500.0,0.00032876,14]
[332698762,1721454652933,-815.33,0.00032876,14]
[332698763,1721454652943,-500.0,0.00032876,14]
[332698764,1721454652953,-500.0,0.00032876,14]
[332698765,1721454652962,-1441.53,0.00032876,14]
[332698766,1721454652972,-500.0,0.00032876,14]
[332698767,1721454652981,-500.0,0.00032876,14]
[332698768,1721454652991,-500.0,0.00032876,14]
[332698769,1721454653000,-500.0,0.00032876,14]
[332698770,1721454653009,-500.0,0.00032876,14]
[332698771,1721454653019,-500.0,0.00032876,14]
[332698772,1721454653028,-698.02,0.00032876,14]
[332698773,1721454653038,-500.0,0.00032876,14]
[332698774,1721454653048,-500.0,0.00032876,14]
[332698775,1721454653057,-500.0,0.00032876,14]
[332698776,1721454653066,-500.0,0.00032876,14]
[332698777,1721454653075,-500.0,0.00032876,14]
[332698778,1721454653086,-500.0,0.00032876,14]
[332698779,1721454653096,-500.0,0.00032876,14]
[332698780,1721454653106,-500.0,0.00032876,14]
[332698781,1721454653115,-1388.48,0.00032876,14]
[332698782,1721454653125,-500.0,0.00032876,14]
[332698783,1721454653135,-500.0,0.00032876,14]
[332698784,1721454653144,-500.0,0.00032876,14]
[332698785,1721454653154,-1150.04,0.00032876,14]
[332698786,1721454653164,-500.0,0.00032876,14]
[332698787,1721454653174,-512.72696198,0.00032876,14]
[332698788,1721454653183,-500.0,0.00032876,14]
[332698789,1721454653192,-500.0,0.00032876,14]
[332698790,1721454653202,-1233.13,0.00032876,7]
[332698791,1721454653211,-500.0,0.00032876,14]
[332698792,1721454653221,-500.0,0.00032876,14]
[332698793,1721454653231,-500.0,0.00032876,14]
[332698794,1721454653241,-500.0,0.00032876,14]
[332698795,1721454653251,-500.0,0.00032876,14]
[332698796,1721454653260,-500.0,0.00032876,14]
[332698797,1721454653270,-500.0,0.00032876,14]
[332698798,1721454653279,-500.0,0.00032876,14]
[332698799,1721454653289,-500.0,0.00032876,14]
[332698800,1721454653299,-500.0,0.00032876,14]
[332698801,1721454653309,-500.0,0.00032876,14]
[332698802,1721454653321,-916.05,0.00032876,14]
[332698803,1721454653332,-500.0,0.00032876,14]
[332698804,1721454653341,-500.0,0.00032876,14]
[332698805,1721454653351,-500.0,0.00032876,14]
[332698806,1721454653361,-500.0,0.00032876,14]
[332698807,1721454653370,-755.96,0.00032876,14]
[332698808,1721454653379,-500.0,0.00032876,14]
[332698809,1721454653389,-500.0,0.00032876,14]
[332698810,1721454653400,-879.07,0.00032876,14]
[332698811,1721454653410,-500.0,0.00032876,14]
[332698812,1721454653420,-500.0,0.00032876,14]
[332698813,1721454653429,-500.0,0.00032876,14]
[332698814,1721454653439,-500.0,0.00032876,14]
[332698815,1721454653448,-802.19,0.00032876,14]
[332698816,1721454653458,-500.0,0.00032876,14]
[332698817,1721454653467,-500.0,0.00032876,14]
[332698818,1721454653476,-1258.1,0.00032876,14]
[332698819,1721454653486,-500.0,0.00032876,14]
[332698820,1721454653495,-500.0,0.00032876,14]
[332698821,1721454653505,-721.76,0.00032876,14]
[332698822,1721454653514,-509.13136841,0.00032876,14]
[332698823,1721454653523,-500.0,0.00032876,14]
[332698824,1721454653533,-500.0,0.00032876,14]
[332698825,1721454653542,-500.0,0.00032876,14]
[332698826,1721454653551,-500.0,0.00032876,14]
[332698827,1721454653560,-500.0,0.00032876,14]
[332698828,1721454653570,-634.54089274,0.00032876,14]
[332698829,1721454653579,-575.57,0.00032876,14]
[332698830,1721454653590,-500.0,0.00032876,14]
[332698831,1721454653599,-500.0,0.00032876,14]
[332698832,1721454653609,-1507.75,0.00032876,14]
[332698833,1721454653618,-500.0,0.00032876,14]
[332698834,1721454653628,-945.44,0.00032876,14]
[332698835,1721454653638,-500.0,0.00032876,14]
[332698836,1721454653647,-500.0,0.00032876,14]
[332698837,1721454653656,-500.0,0.00032876,2]
[332698838,1721454653666,-500.0,0.00032876,14]
[332698839,1721454653675,-500.0,0.00032876,14]
[332698840,1721454653684,-500.0,0.00032876,14]
[332698841,1721454653694,-500.0,0.00032876,14]
[332698842,1721454653703,-606.38420345,0.00032876,14]
[332698843,1721454653712,-956.9,0.00032876,14]
[332698844,1721454653721,-500.0,0.00032876,14]
[332698845,1721454653730,-500.0,0.00032876,14]
[332698846,1721454653740,-500.0,0.00032876,14]
[332698847,1721454653749,-500.0,0.00032876,14]
[332698848,1721454653759,-500.0,0.00032876,14]
[332698849,1721454653768,-500.0,0.00032876,14]
[332698850,1721454653777,-500.0,0.00032876,14]
[332698851,1721454653786,-500.0,0.00032876,14]
[332698852,1721454653795,-500.0,0.00032876,14]
[332698853,1721454653804,-2294.03,0.00032876,14]
[332698854,1721454653813,-4051.96,0.00032876,14]
[332698855,1721454653822,-500.0,0.00032876,14]
[332698856,1721454653831,-500.0,0.00032876,14]
[332698857,1721454653841,-1855.61,0.00032876,14]
[332698858,1721454653851,-500.0,0.00032876,14]
[332698859,1721454653861,-691.44,0.00032876,14]
[332698860,1721454653870,-500.0,0.00032876,14]
[332698861,1721454653879,-500.0,0.00032876,14]
[332698862,1721454653888,-500.0,0.00032876,14]
[332698863,1721454653897,-500.0,0.00032876,14]
[332698864,1721454653906,-500.0,0.00032876,14]
[332698865,1721454653916,-500.0,0.00032876,14]
[332698866,1721454653925,-626.18,0.00032876,14]
[332698867,1721454653934,-500.0,0.00032876,14]
[332698868,1721454653943,-500.0,0.00032876,14]
[332698869,1721454653952,-3548.1,0.00032876,14]
[332698870,1721454653961,-2137.09,0.00032876,14]
[332698871,1721454653970,-509.47,0.00032876,14]
[332698872,1721454653980,-2892.74,0.00032876,14]
[332698873,1721454653989,-500.0,0.00032876,14]
[332698874,1721454653998,-2204.46,0.00032876,14]
[332698875,1721454654007,-500.0,0.00032876,14]
[332698876,1721454654016,-953.73,0.00032876,14]
[332698877,1721454654025,-500.0,0.00032876,14]
[332698878,1721454654035,-1125.08,0.00032876,14]
[332698879,1721454654044,-500.0,0.00032876,14]
[332698880,1721454654053,-1011.8,0.00032876,14]
[332698881,1721454654063,-500.0,0.00032876,14]
[332698882,1721454654074,-908.27,0.00032876,14]
[332698883,1721454654084,-500.0,0.00032876,14]
[332698884,1721454654093,-500.0,0.00032876,14]
[332698885,1721454654103,-500.0,0.00032876,14]
[332698886,1721454654112,-1227.28,0.00032876,14]
[332698887,1721454654121,-8132.78,0.00032876,14]
[332698888,1721454654131,-2035.89,0.00032876,14]
[332698889,1721454654140,-614.64,0.00032876,14]
[332698890,1721454654149,-500.0,0.00032876,14]
[332698891,1721454654159,-575.16,0.00032876,14]
[332698892,1721454654168,-1486.5,0.00032876,14]
[332698893,1721454654178,-1407.98,0.00032876,14]
[332698894,1721454654187,-1407.98,0.00032876,14]
[332698895,1721454654196,-1138.31,0.00032876,14]
[332698896,1721454654205,-1407.98,0.00032876,14]
[332698897,1721454654215,-1407.98,0.00032876,14]
[332698898,1721454654225,-500.0,0.00032876,14]
[332698899,1721454654235,-1407.98,0.00032876,14]
[332698900,1721454654244,-607.88567032,0.00032876,14]
[332698901,1721454654254,-1407.98,0.00032876,14]
[332698902,1721454654263,-500.0,0.00032876,14]
[332698903,1721454654273,-500.0,0.00032876,14]
[332698904,1721454654283,-1407.98,0.00032876,14]
[332698905,1721454654292,-1562.52,0.00032876,14]
[332698906,1721454654301,-1407.98,0.00032876,14]
[332698907,1721454654316,-1407.98,0.00032876,14]
[332698908,1721454654327,-1407.98,0.00032876,14]
[332698909,1721454654337,-1407.98,0.00032876,14]
[332698910,1721454654347,-2099.47,0.00032876,14]
[332698911,1721454654356,-500.0,0.00032876,14]
[332698912,1721454654368,-500.0,0.00032876,14]
[332698913,1721454654378,-500.0,0.00032876,14]
[332698914,1721454654388,-2011.54,0.00032876,14]
[332698915,1721454654398,-2892.84,0.00032876,14]
[332698916,1721454654407,-4357.79,0.00032876,14]
[332698917,1721454654416,-503.46598041,0.00032876,14]
[332698918,1721454654426,-1589.17,0.00032876,14]
[332698919,1721454654437,-500.0,0.00032876,14]
[332698920,1721454654446,-500.0,0.00032876,14]
[332698921,1721454654455,-500.0,0.00032876,14]
[332698922,1721454654465,-1407.98,0.00032876,14]
[332698923,1721454654474,-1407.98,0.00032876,14]
[332698924,1721454654484,-500.0,0.00032876,14]
[332698925,1721454654494,-1407.98,0.00032876,14]
[332698926,1721454654503,-1172.33,0.00032876,14]
[332698927,1721454654512,-1407.98,0.00032876,14]
[332698928,1721454654522,-1407.98,0.00032876,14]
[332698929,1721454654532,-1407.98,0.00032876,14]
[332698930,1721454654541,-1407.98,0.00032876,14]
[332698931,1721454654550,-1407.98,0.00032876,14]
[332698932,1721454654561,-500.0,0.00032876,14]
[332698933,1721454654571,-1407.98,0.00032876,14]
[332698934,1721454654584,-500.0,0.00032876,14]
[332698935,1721454654594,-500.0,0.00032876,14]
[332698936,1721454654604,-1407.98,0.00032876,14]
[332698937,1721454654616,-1407.98,0.00032876,14]
[332698938,1721454654626,-1407.98,0.00032876,14]
[332698939,1721454654637,-1408.11283647,0.00032876,14]
[332698940,1721454654649,-1375.07,0.00032876,14]
[332698941,1721454654659,-1834.57,0.00032876,14]
[332698942,1721454654668,-13120.15,0.00032876,14]
[332698943,1721454654678,-500.0,0.00032876,14]
[332698944,1721454654687,-4131.25,0.00032876,14]
[332698945,1721454654696,-500.0,0.00032876,14]
[332698946,1721454654707,-500.0,0.00032876,14]
[332698947,1721454654718,-1248.89,0.00032876,14]
[332698948,1721454654728,-1789.82,0.00032876,14]
[332698949,1721454654738,-500.0,0.00032876,14]
[332698950,1721454654747,-501.34844188,0.00032876,14]
[332698951,1721454654756,-500.0,0.00032876,14]
[332698952,1721454654766,-701.08,0.00032876,14]
[332698953,1721454654775,-1061.38,0.00032876,14]
[332698954,1721454654784,-500.0,0.00032876,14]
[332698955,1721454654794,-496.76816386,0.00032876,14]
[332698956,1721454654804,-2389.87,0.00032876,14]
[332698957,1721454654813,-2482.06,0.00032876,14]
[332698958,1721454654823,-503.07357327,0.00032876,14]
[332698959,1721454654832,-775.2,0.00032876,14]
[332698960,1721454654842,-816.59,0.00032876,14]
[332698961,1721454654851,-500.0,0.00032876,14]
[332698962,1721454654861,-655.03,0.00032876,14]
[332698963,1721454654871,-500.0,0.00032876,14]
[332698964,1721454654880,-500.0,0.00032876,14]
[332698965,1721454654890,-10337.24,0.00032876,14]
[332698966,1721454654900,-500.0,0.00032876,14]
[332698967,1721454654910,-500.0,0.00032876,14]
[332698968,1721454654919,-2400.68,0.00032876,14]
[332698969,1721454654929,-2903.43,0.00032876,14]
[332698970,1721454654939,-500.0,0.00032876,14]
[332698971,1721454654948,-500.0,0.00032876,14]
[332698972,1721454654958,-500.0,0.00032876,14]
[332698973,1721454654967,-871.73,0.00032876,14]
[332698974,1721454654977,-500.0,0.00032876,14]
[332698975,1721454654986,-537.49,0.00032876,14]
[332698976,1721454654995,-500.0,0.00032876,14]
[332698977,1721454655004,-500.0,0.00032876,14]
[332698978,1721454655013,-3440.18,0.00032876,14]
[332698979,1721454655022,-658.05,0.00032876,14]
[332698980,1721454655031,-500.0,0.00032876,14]
[332698981,1721454655041,-800.38,0.00032876,14]
[332698982,1721454655050,-500.0,0.00032876,14]
[332698983,1721454655059,-529.84,0.00032876,14]
[332698984,1721454655069,-500.0,0.00032876,14]
[332698985,1721454655080,-789.85,0.00032876,14]
[332698986,1721454655091,-5938.68,0.00032876,14]
[332698987,1721454655101,-848.04,0.00032876,14]
[332698988,1721454655110,-867.86,0.00032876,14]
[332698989,1721454655120,-500.0,0.00032876,14]
[332698990,1721454655129,-735.16,0.00032876,14]
[332698991,1721454655138,-500.0,0.00032876,14]
[332698992,1721454655148,-1292.82,0.00032876,14]
[332698993,1721454655157,-500.0,0.00032876,14]
[332698994,1721454655166,-4015.29,0.00032876,14]
[332698995,1721454655176,-500.0,0.00032876,14]
[332698996,1721454655185,-500.91460829,0.00032876,14]
[332698997,1721454655198,-500.0,0.00032876,14]
[332698998,1721454655209,-500.0,0.00032876,14]
[332698999,1721454655219,-5853.88,0.00032876,14]
[332699000,1721454655229,-500.0,0.00032876,14]
[332699001,1721454655238,-500.0,0.00032876,14]
[332699002,1721454655249,-500.0,0.00032876,14]
[332699003,1721454655258,-500.0,0.00032876,14]
[332699004,1721454655268,-531.09,0.00032876,14]
[332699005,1721454655277,-501.0292479,0.00032876,14]
[332699006,1721454655287,-501.29445339,0.00032876,14]
[332699007,1721454655297,-500.0,0.00032876,14]
[332699008,1721454655307,-2357.13,0.00032876,14]
[332699009,1721454655320,-500.0,0.00032876,14]
[332699010,1721454655331,-500.0,0.00032876,14]
[332699011,1721454655341,-669.25,0.00032876,14]
[332699012,1721454655351,-500.0,0.00032876,14]
[332699013,1721454655361,-2902.56,0.00032876,14]
[332699014,1721454655370,-500.0,0.00032876,14]
[332699015,1721454655380,-500.0,0.00032876,14]
[332699016,1721454655391,-500.0,0.00032876,14]
[332699017,1721454655401,-5173.83,0.00032876,14]
[332699018,1721454655411,-500.0,0.00032876,14]
[332699019,1721454655422,-500.0,0.00032876,14]
[332699020,1721454655434,-500.0,0.00032876,14]
[332699021,1721454655444,-500.0,0.00032876,14]
[332699022,1721454655453,-500.0,0.00032876,14]
[332699023,1721454655463,-527.63,0.00032876,14]
[332699024,1721454655472,-500.0,0.00032876,14]
[332699025,1721454655481,-4171.78,0.00032876,14]
[332699026,1721454655492,-500.0,0.00032876,14]
[332699027,1721454655502,-500.0,0.00032876,14]
[332699028,1721454655511,-1007.16,0.00032876,14]
[332699029,1721454655522,-500.0,0.00032876,14]
[332699030,1721454655533,-500.0,0.00032876,14]
[332699031,1721454655543,-502.18372977,0.00032876,14]
[332699032,1721454655552,-500.0,0.00032876,14]
[332699033,1721454655561,-500.0,0.00032876,14]
[332699034,1721454655570,-500.0,0.00032876,14]
[332699035,1721454655580,-1175.99,0.00032876,14]
[332699036,1721454655589,-1086.49,0.00032876,14]
[332699037,1721454655598,-500.0,0.00032876,14]
[332699038,1721454655608,-500.0,0.00032876,14]
[332699039,1721454655617,-5650.95,0.00032876,14]
[332699040,1721454655627,-500.0,0.00032876,14]
[332699041,1721454655637,-500.0,0.00032876,14]
[332699042,1721454655646,-1786.18,0.00032876,14]
[332699043,1721454655657,-1142.16,0.00032876,14]
[332699044,1721454655667,-500.0,0.00032876,14]
[332699045,1721454655676,-500.0,0.00032876,14]
[332699046,1721454655688,-500.0,0.00032876,14]